[Event "Vienna Chess Open 2019"]
[Site "Vienna"]
[Date "2019.08.21"]
[Round "6.6"]
[White "Buhmann, Rainer"]
[Black "Barp, Alberto"]
[Result "1-0"]
[ECO "C88"]
[WhiteElo "2574"]
[BlackElo "2411"]
[Annotator "ChessBase"]
[PlyCount "45"]
[EventDate "2019.08.17"]
[EventType "swiss"]
[EventCountry "AUT"]
[SourceTitle "playchess.com"]
[Source "ChessBase"]
[SourceQuality "1"]
[TimeControl "40/5400+30:1800+30"]

1. e4 {[%emt 0:00:00]} e5 {[%emt 0:00:00]} 2. Nf3 {[%emt 0:00:00]} Nc6 {[%emt 0:00:00]} 3. Bb5 {[%emt 0:00:00]} a6 {[%emt 0:00:02]} 4. Ba4 {[%emt 0:00:00]} Nf6 {[%emt 0:01:01]} 5. O-O {[%emt 0:00:04]} Be7 {[%emt 0:00:27]} 6. Re1 {[%emt 0:00:32]} b5 {[%emt 0:00:06]} 7. Bb3 {[%emt 0:00:04]} O-O {[%emt 0:00:16]} 8. a4 {[%emt 0:00:23]} b4 {[%emt 0:00:55]} 9. a5 {[%emt 0:01:03]} Bc5 {[%emt 0:10:11]} 10. c3 {[%emt 0:01:01]} bxc3 {[%emt 0:10:31]} 11. bxc3 {[%emt 0:02:15]} d6 {[%emt 0:03:36]} 12. d4 {[%emt 0:08:14]} Ba7 {[%emt 0:00:50]} 13. h3 {[%emt 0:08:09]} h6 {[%emt 0:02:25]} 14. Be3 {[%emt 0:06:34]} Re8 {[%emt 0:08:43]} 15. Nbd2 {[%emt 0:16:02]} Bd7 {[%emt 0:00:25]} 16. Qc2 {[%emt 0:04:44]} Nh5 {[%emt 0:20:18]} 17. Ba4 {[%emt 0:17:25]} Qf6 {[%emt 0:08:28]} 18. Rab1 {[%emt 0:09:46]} Red8 {[%emt 0:09:04]} 19. Rb7 {[%emt 0:08:38]} exd4 {[%emt 0:05:46]} 20. cxd4 {[%emt 0:00:05]} Nxd4 {[%emt 0:00:20]} 21. Bxd4 {[%emt 0:00:38]} Bxd4 {[%emt 0:00:37]} 22. Bxd7 {[%emt 0:00:40]} Rxd7 {[%emt 0:03:52]} 23. Qa4 {[%emt 0:00:51]} 1-0

[Event "Vienna Chess Open 2019"]
[Site "Vienna"]
[Date "2019.08.21"]
[Round "6.6"]
[White "Markoja, Boris"]
[Black "Gueci, Tea"]
[Result "1-0"]
[ECO "A06"]
[WhiteElo "2440"]
[BlackElo "2259"]
[Annotator "ChessBase"]
[PlyCount "109"]
[EventDate "2019.08.17"]
[EventType "swiss"]
[EventCountry "AUT"]
[SourceTitle "playchess.com"]
[Source "ChessBase"]
[SourceQuality "1"]
[TimeControl "40/5400+30:1800+30"]

1. c4 {[%emt 0:00:00]} e6 {[%emt 0:00:00]} 2. Nf3 {[%emt 0:00:00]} Nf6 {[%emt 0:00:00]} 3. b3 {[%emt 0:01:07]} d5 {[%emt 0:00:00]} 4. Bb2 {[%emt 0:01:29]} c5 {[%emt 0:01:16]} 5. e3 {[%emt 0:00:16]} Nc6 {[%emt 0:01:25]} 6. cxd5 {[%emt 0:00:27]} exd5 {[%emt 0:00:56]} 7. Bb5 {[%emt 0:00:13]} Be7 {[%emt 0:09:47]} 8. d4 {[%emt 0:05:29]} Bg4 {[%emt 0:05:36]} 9. O-O {[%emt 0:07:55]} cxd4 {[%emt 0:02:44]} 10. Bxd4 {[%emt 0:05:28]} O-O {[%emt 0:01:08]} 11. Bb2 {[%emt 0:01:31]} Qb6 {[%emt 0:06:39]} 12. Be2 {[%emt 0:04:02]} Rfd8 {[%emt 0:02:33]} 13. Nbd2 {[%emt 0:07:09]} Rac8 {[%emt 0:04:51]} 14. Nd4 {[%emt 0:03:06]} Bxe2 {[%emt 0:01:43]} 15. Qxe2 {[%emt 0:00:54]} Nxd4 {[%emt 0:03:40]} 16. Bxd4 {[%emt 0:00:07]} Bc5 {[%emt 0:01:02]} 17. Nf3 {[%emt 0:01:41]} Bxd4 {[%emt 0:05:58]} 18. Nxd4 {[%emt 0:01:02]} a6 {[%emt 0:01:09]} 19. Rac1 {[%emt 0:04:07]} Rc7 {[%emt 0:05:16]} 20. Nf5 {[%emt 0:02:57]} Rdd7 {[%emt 0:13:20]} 21. Qb2 {[%emt 0:16:39]} Qe6 {[%emt 0:02:16]} 22. Nd4 {[%emt 0:01:56]} Qe5 {[%emt 0:00:43]} 23. Qe2 {[%emt 0:03:33]} h6 {[%emt 0:06:51]} 24. Nf3 {[%emt 0:01:20]} Qe8 {[%emt 0:04:15]} 25. Qb2 {[%emt 0:01:15]} Qc8 {[%emt 0:00:51]} 26. Nd4 {[%emt 0:03:00]} Re7 {[%emt 0:04:15]} 27. Rcd1 {[%emt 0:02:24]} Ne4 {[%emt 0:03:36]} 28. f3 {[%emt 0:01:29]} Nf6 {[%emt 0:02:40]} 29. Rd3 {[%emt 0:00:31]} Rc5 {[%emt 0:01:50]} 30. g4 {[%emt 0:03:50]} Rec7 {[%emt 0:02:24]} 31. Nf5 {[%emt 0:00:42]} Qe6 {[%emt 0:00:48]} 32. Rf2 {[%emt 0:00:21]} Rc1+ {[%emt 0:01:27]} 33. Kg2 {[%emt 0:00:03]} Kh7 {[%emt 0:01:14]} 34. Qd4 {[%emt 0:02:07]} R7c5 {[%emt 0:02:20]} 35. h4 {[%emt 0:03:40]} a5 {[%emt 0:01:37]} 36. Rfd2 {[%emt 0:01:37]} h5 {[%emt 0:00:44]} 37. Nxg7 {[%emt 0:00:52]} Kxg7 {[%emt 0:00:15]} 38. g5 {[%emt 0:00:04]} Kg6 {[%emt 0:01:12]} 39. Qxf6+ {[%emt 0:01:05]} Qxf6 {[%emt 0:00:04]} 40. gxf6 {[%emt 0:00:03]} Ra1 {[%emt 0:00:36]} 41. Kg3 {[%emt 0:41:48]} b6 {[%emt 0:09:33]} 42. Rxd5 {[%emt 0:00:00]} Rxa2 {[%emt 0:05:07]} 43. Rxc5 {[%emt 0:00:00]} Rxd2 {[%emt 0:00:04]} 44. Rg5+ {[%emt 0:00:00]} Kxf6 {[%emt 0:00:14]} 45. e4 {[%emt 0:00:00]} Rb2 {[%emt 0:07:57]} 46. Rb5 {[%emt 0:00:00]} Kg7 {[%emt 0:00:30]} 47. Kf4 {[%emt 0:00:00]} f6 {[%emt 0:01:23]} 48. Kf5 {[%emt 0:00:00]} Rf2 {[%emt 0:00:33]} 49. f4 {[%emt 0:00:00]} Rh2 {[%emt 0:00:49]} 50. Rxb6 {[%emt 0:00:00]} Rxh4 {[%emt 0:00:45]} 51. Rb7+ {[%emt 0:00:00]} Kg8 {[%emt 0:01:35]} 52. Ra7 {[%emt 0:00:00]} Rh3 {[%emt 0:01:11]} 53. Kxf6 {[%emt 0:00:00]} Rxb3 {[%emt 0:00:12]} 54. e5 {[%emt 0:00:00]} h4 {[%emt 0:01:12]} 55. e6 {[%emt 0:00:00]} 1-0

[Event "Vienna Chess Open 2019"]
[Site "Vienna"]
[Date "2019.08.21"]
[Round "6.6"]
[White "Zeller, Frank"]
[Black "Rubil, Marko"]
[Result "1/2-1/2"]
[ECO "D24"]
[WhiteElo "2371"]
[BlackElo "2248"]
[Annotator "NA"]
[PlyCount "38"]
[EventDate "2019.08.17"]
[EventType "swiss"]
[EventCountry "AUT"]
[SourceTitle "playchess.com"]
[Source "ChessBase"]
[SourceQuality "1"]
[TimeControl "40/5400+30:1800+30"]

1. d4 {[%emt 0:00:00]} d5 {[%emt 0:02:26]} 2. c4 {[%emt 0:00:00]} dxc4 {[%emt 0:07:42]} 3. Nf3 {[%emt 0:00:44]} Nf6 {[%emt 0:08:19]} 4. Nc3 {[%emt 0:00:19]} a6 {[%emt 0:05:23]} 5. e4 {[%emt 0:00:42]} b5 {[%emt 0:00:26]} 6. e5 {[%emt 0:00:25]} Nd5 {[%emt 0:04:20]} 7. a4 {[%emt 0:00:22]} Nxc3 {[%emt 0:06:51]} 8. bxc3 {[%emt 0:00:24]} Bb7 {[%emt 0:00:07]} 9. e6 {[%emt 0:01:20]} fxe6 {[%emt 0:00:29]} 10. Ng5 {[%emt 0:07:52]} Qd5 {[%emt 0:00:33]} 11. Qg4 {[%emt 0:03:31]} h5 {[%emt 0:35:07]} 12. Qf4 {[%emt 0:30:00]} Nc6 {[%emt 0:02:11]} 13. Be2 {[%emt 0:12:37]} Kd7 {[%emt 0:09:54]} 14. Bf3 {[%emt 0:01:32]} Qf5 {[%emt 0:04:20]} 15. d5 {[%emt 0:00:46]} Qe5+ {[%emt 0:00:02]} 16. Qxe5 {[%emt 0:04:56]} Nxe5 {[%emt 0:00:01]} 17. dxe6+ Kc8 18. Bxb7+ {[%emt 0:03:44]} Kxb7 {[%emt 0:00:01]} 19. O-O {[%emt 0:00:36]} g6 {[%emt 0:01:41]} 1/2-1/2

[Event "Vienna Chess Open 2019"]
[Site "Vienna"]
[Date "2019.08.21"]
[Round "6.7"]
[White "Peralta, Fernando"]
[Black "Gschnitzer, Adrian"]
[Result "1-0"]
[ECO "A35"]
[WhiteElo "2572"]
[BlackElo "2410"]
[Annotator "ChessBase"]
[PlyCount "73"]
[EventDate "2019.08.17"]
[EventType "swiss"]
[EventCountry "AUT"]
[SourceTitle "playchess.com"]
[Source "ChessBase"]
[SourceQuality "1"]
[TimeControl "40/5400+30:1800+30"]

1. Nf3 {[%emt 0:00:00]} c5 {[%emt 0:00:53]} 2. c4 {[%emt 0:00:00]} Nf6 {[%emt 0:00:09]} 3. Nc3 {[%emt 0:00:18]} Nc6 {[%emt 0:00:10]} 4. e3 {[%emt 0:00:35]} e6 {[%emt 0:01:17]} 5. d4 {[%emt 0:00:11]} d5 {[%emt 0:00:10]} 6. cxd5 {[%emt 0:00:50]} exd5 {[%emt 0:00:37]} 7. Bb5 {[%emt 0:00:10]} Be7 {[%emt 0:02:19]} 8. dxc5 {[%emt 0:00:37]} O-O {[%emt 0:01:09]} 9. O-O {[%emt 0:00:07]} Bxc5 {[%emt 0:00:30]} 10. b3 {[%emt 0:00:19]} a6 {[%emt 0:09:50]} 11. Bxc6 {[%emt 0:00:37]} bxc6 {[%emt 0:00:09]} 12. Bb2 {[%emt 0:00:17]} Re8 {[%emt 0:04:27]} 13. Rc1 {[%emt 0:00:55]} Ba7 {[%emt 0:05:04]} 14. Na4 {[%emt 0:08:30]} Qd6 {[%emt 0:03:00]} 15. Qc2 {[%emt 0:04:11]} Bd7 {[%emt 0:01:24]} 16. Bd4 {[%emt 0:06:08]} Ne4 {[%emt 0:11:19]} 17. Bxa7 {[%emt 0:02:27]} Rxa7 {[%emt 0:00:08]} 18. Nd4 {[%emt 0:04:14]} Kf8 {[%emt 0:05:32]} 19. Rfd1 {[%emt 0:04:52]} Rc7 {[%emt 0:03:35]} 20. f3 {[%emt 0:18:41]} Nf6 {[%emt 0:01:02]} 21. Qc5 {[%emt 0:00:06]} Qxc5 {[%emt 0:01:22]} 22. Nxc5 {[%emt 0:00:43]} Rxe3 {[%emt 0:02:45]} 23. Nxa6 {[%emt 0:00:44]} Rc8 {[%emt 0:03:08]} 24. Nc5 {[%emt 0:00:42]} Ke7 {[%emt 0:00:58]} 25. Kf2 {[%emt 0:06:28]} Re5 {[%emt 0:00:31]} 26. Rd2 {[%emt 0:09:04]} Nh5 {[%emt 0:08:33]} 27. Nd3 {[%emt 0:05:42]} Rg5 {[%emt 0:00:37]} 28. h4 {[%emt 0:09:16]} Rg6 {[%emt 0:01:27]} 29. g4 {[%emt 0:01:16]} Nf6 {[%emt 0:02:28]} 30. Ne5 {[%emt 0:04:20]} Rh6 {[%emt 0:00:19]} 31. g5 {[%emt 0:02:27]} Rxh4 {[%emt 0:00:09]} 32. gxf6+ {[%emt 0:01:13]} gxf6 {[%emt 0:00:08]} 33. Ndxc6+ {[%emt 0:04:05]} Bxc6 {[%emt 0:01:03]} 34. Nxc6+ {[%emt 0:01:52]} Kd6 {[%emt 0:00:30]} 35. Rxd5+ {[%emt 0:02:36]} Kxd5 {[%emt 0:00:08]} 36. Ne7+ {[%emt 0:00:05]} Kd4 {[%emt 0:00:29]} 37. Rxc8 {[%emt 0:01:17]} 1-0

[Event "Vienna Chess Open 2019"]
[Site "Vienna"]
[Date "2019.08.21"]
[Round "6.7"]
[White "Bawart, Markus"]
[Black "Tomaszewski, Roman"]
[Result "1/2-1/2"]
[ECO "A10"]
[WhiteElo "2364"]
[BlackElo "2205"]
[Annotator "NA"]
[PlyCount "88"]
[EventDate "2019.08.17"]
[EventType "swiss"]
[EventCountry "AUT"]
[SourceTitle "playchess.com"]
[Source "ChessBase"]
[SourceQuality "1"]
[TimeControl "40/5400+30:1800+30"]

1. c4 {[%emt 0:04:10]} f5 {[%emt 0:00:15]} 2. Nc3 {[%emt 0:00:08]} Nf6 {[%emt 0:00:16]} 3. Nf3 {[%emt 0:00:55]} e6 {[%emt 0:00:34]} 4. d4 {[%emt 0:02:41]} d5 {[%emt 0:00:16]} 5. cxd5 {[%emt 0:00:18]} exd5 {[%emt 0:00:10]} 6. Bg5 {[%emt 0:00:01]} c6 {[%emt 0:08:55]} 7. e3 {[%emt 0:00:32]} Be7 {[%emt 0:01:40]} 8. Qc2 {[%emt 0:00:32]} O-O {[%emt 0:08:59]} 9. Bxf6 {[%emt 0:00:18]} Bxf6 {[%emt 0:02:20]} 10. Bd3 {[%emt 0:00:10]} g6 {[%emt 0:06:39]} 11. h4 {[%emt 0:00:11]} h5 {[%emt 0:09:52]} 12. Ne2 {[%emt 0:01:02]} Kh8 {[%emt 0:28:09]} 13. Nf4 {[%emt 0:00:25]} Rg8 {[%emt 0:04:31]} 14. O-O-O {[%emt 0:02:28]} Nd7 {[%emt 0:08:29]} 15. Rh3 {[%emt 0:08:23]} Nf8 {[%emt 0:00:14]} 16. Rdh1 {[%emt 0:00:19]} Qe7 {[%emt 0:03:05]} 17. Rg3 {[%emt 0:01:02]} Bd7 {[%emt 0:00:28]} 18. Kb1 {[%emt 0:00:17]} Be8 {[%emt 0:00:23]} 19. Ng5 {[%emt 0:01:05]} Rg7 {[%emt 0:00:14]} 20. Be2 {[%emt 0:02:52]} Rd8 {[%emt 0:01:18]} 21. Nd3 {[%emt 0:00:17]} b6 {[%emt 0:01:50]} 22. f4 {[%emt 0:01:03]} c5 {[%emt 0:02:04]} 23. Ne5 {[%emt 0:01:46]} c4 {[%emt 0:01:50]} 24. Qd2 {[%emt 0:06:58]} Qc7 {[%emt 0:01:14]} 25. Rc1 {[%emt 0:06:44]} b5 {[%emt 0:00:15]} 26. Rh3 {[%emt 0:00:33]} a5 {[%emt 0:01:05]} 27. Kc2 {[%emt 0:01:56]} b4 {[%emt 0:01:01]} 28. Kd1 {[%emt 0:00:05]} Qb6 {[%emt 0:01:18]} 29. Ke1 {[%emt 0:00:26]} Rc7 {[%emt 0:00:57]} 30. Kf2 {[%emt 0:00:12]} Kg7 {[%emt 0:00:24]} 31. Rhh1 {[%emt 0:00:06]} Rdc8 {[%emt 0:00:29]} 32. Bf3 {[%emt 0:00:47]} Qd6 {[%emt 0:01:01]} 33. Qe2 {[%emt 0:01:58]} Rd8 {[%emt 0:01:01]} 34. Ra1 {[%emt 0:02:05]} Rb8 {[%emt 0:00:37]} 35. Rhc1 {[%emt 0:00:48]} Bb5 {[%emt 0:01:32]} 36. Qe1 {[%emt 0:04:50]} Ra7 {[%emt 0:00:23]} 37. Qh1 {[%emt 0:06:08]} Rd8 {[%emt 0:00:16]} 38. a3 {[%emt 0:01:25]} Be8 {[%emt 0:01:33]} 39. axb4 {[%emt 0:14:11]} Qxb4 {[%emt 0:01:32]} 40. Ra2 {[%emt 0:00:39]} Qd2+ {[%emt 0:00:44]} 41. Be2 {[%emt 0:30:47]} Qb4 {[%emt 0:13:40]} 42. Rca1 {[%emt 0:00:00]} Rd6 {[%emt 0:04:59]} 43. Qc1 {[%emt 0:00:00]} Bd8 {[%emt 0:02:54]} 44. Ngf3 {[%emt 0:00:00]} Nd7 {[%emt 0:02:19]} 1/2-1/2

[Event "Vienna Chess Open 2019"]
[Site "Vienna"]
[Date "2019.08.21"]
[Round "6.7"]
[White "Matt, Fabian"]
[Black "Ozen, Deniz"]
[Result "1/2-1/2"]
[ECO "A05"]
[WhiteElo "2271"]
[BlackElo "2429"]
[Annotator "NA"]
[PlyCount "30"]
[EventDate "2019.08.17"]
[EventType "swiss"]
[EventCountry "AUT"]
[SourceTitle "playchess.com"]
[Source "ChessBase"]
[SourceQuality "1"]
[TimeControl "40/5400+30:1800+30"]

1. Nf3 {[%emt 0:02:00]} Nf6 {[%emt 0:00:00]} 2. c4 {[%emt 0:00:17]} c6 {[%emt 0:00:05]} 3. e3 {[%emt 0:00:19]} d5 {[%emt 0:00:08]} 4. Nc3 {[%emt 0:00:12]} g6 {[%emt 0:06:54]} 5. d4 {[%emt 0:01:51]} Bg7 {[%emt 0:00:07]} 6. cxd5 {[%emt 0:02:21]} cxd5 {[%emt 0:00:16]} 7. Bd3 {[%emt 0:00:31]} O-O {[%emt 0:00:16]} 8. O-O {[%emt 0:00:21]} Bg4 {[%emt 0:05:59]} 9. h3 {[%emt 0:00:33]} Bxf3 {[%emt 0:00:05]} 10. Qxf3 {[%emt 0:00:04]} Nc6 {[%emt 0:00:16]} 11. Bd2 {[%emt 0:01:05]} e5 {[%emt 0:03:39]} 12. dxe5 {[%emt 0:02:30]} Nxe5 {[%emt 0:00:11]} 13. Qe2 {[%emt 0:00:03]} Nxd3 {[%emt 0:03:51]} 14. Qxd3 {[%emt 0:00:06]} Qc8 {[%emt 0:09:14]} 15. Rfd1 {[%emt 0:02:57]} Qc4 {[%emt 0:04:01]} 1/2-1/2

[Event "Vienna Chess Open 2019"]
[Site "Vienna"]
[Date "2019.08.21"]
[Round "6.8"]
[White "Pfreundt, Jakob"]
[Black "Nasuta, Grzegorz"]
[Result "1/2-1/2"]
[ECO "D10"]
[WhiteElo "2410"]
[BlackElo "2533"]
[Annotator "ChessBase"]
[PlyCount "48"]
[EventDate "2019.08.17"]
[EventType "swiss"]
[EventCountry "AUT"]
[SourceTitle "playchess.com"]
[Source "ChessBase"]
[SourceQuality "1"]
[TimeControl "40/5400+30:1800+30"]

1. d4 {[%emt 0:00:00]} d5 {[%emt 0:00:00]} 2. c4 {[%emt 0:00:00]} c6 {[%emt 0:00:00]} 3. cxd5 {[%emt 0:00:12]} cxd5 {[%emt 0:00:00]} 4. Bf4 {[%emt 0:00:30]} Nc6 {[%emt 0:00:30]} 5. e3 {[%emt 0:00:12]} e6 {[%emt 0:00:23]} 6. Nc3 {[%emt 0:03:45]} Bd6 {[%emt 0:00:26]} 7. Bxd6 {[%emt 0:05:52]} Qxd6 {[%emt 0:00:12]} 8. Qg4 {[%emt 0:07:44]} g6 {[%emt 0:01:09]} 9. Qg3 {[%emt 0:04:07]} Qb4 {[%emt 0:11:06]} 10. O-O-O {[%emt 0:02:53]} Nge7 {[%emt 0:11:34]} 11. Bd3 {[%emt 0:17:05]} Bd7 {[%emt 0:00:05]} 12. Kb1 {[%emt 0:03:18]} f6 {[%emt 0:21:53]} 13. h4 {[%emt 0:10:48]} e5 {[%emt 0:21:31]} 14. h5 {[%emt 0:00:24]} g5 {[%emt 0:05:01]} 15. dxe5 {[%emt 0:11:43]} fxe5 {[%emt 0:16:51]} 16. e4 {[%emt 0:10:25]} d4 {[%emt 0:03:52]} 17. Nd5 {[%emt 0:00:11]} Qd6 {[%emt 0:00:11]} 18. Qxg5 {[%emt 0:05:03]} Nxd5 {[%emt 0:00:46]} 19. exd5 {[%emt 0:00:08]} Qxd5 {[%emt 0:00:03]} 20. Nf3 {[%emt 0:02:35]} Rg8 {[%emt 0:00:26]} 21. Qf6 {[%emt 0:01:22]} Rf8 {[%emt 0:00:34]} 22. Qg5 {[%emt 0:00:26]} Rg8 {[%emt 0:00:49]} 23. Qf6 {[%emt 0:00:26]} Rf8 {[%emt 0:02:02]} 24. Qg5 {[%emt 0:00:51]} Rg8 1/2-1/2

[Event "Vienna Chess Open 2019"]
[Site "Vienna"]
[Date "2019.08.21"]
[Round "6.8"]
[White "Paszewski, Mateusz"]
[Black "Mons, Leon"]
[Result "1/2-1/2"]
[ECO "A13"]
[WhiteElo "2329"]
[BlackElo "2559"]
[Annotator "ChessBase"]
[PlyCount "57"]
[EventDate "2019.08.17"]
[EventType "swiss"]
[EventCountry "AUT"]
[SourceTitle "playchess.com"]
[Source "ChessBase"]
[SourceQuality "1"]
[TimeControl "40/5400+30:1800+30"]

1. c4 {[%emt 0:00:00]} e6 {[%emt 0:00:00]} 2. g3 {[%emt 0:00:04]} d5 {[%emt 0:00:08]} 3. Nf3 {[%emt 0:00:06]} Nf6 {[%emt 0:00:25]} 4. Bg2 {[%emt 0:00:09]} dxc4 {[%emt 0:02:33]} 5. Qa4+ {[%emt 0:00:32]} c6 {[%emt 0:02:17]} 6. Qxc4 {[%emt 0:00:05]} b5 {[%emt 0:00:46]} 7. Qb3 {[%emt 0:01:14]} Bb7 {[%emt 0:01:56]} 8. O-O {[%emt 0:03:36]} Nbd7 {[%emt 0:02:10]} 9. d4 {[%emt 0:04:09]} a6 {[%emt 0:00:32]} 10. Ne5 {[%emt 0:18:58]} Nxe5 {[%emt 0:17:08]} 11. dxe5 {[%emt 0:00:02]} Nd7 {[%emt 0:00:07]} 12. Rd1 {[%emt 0:12:05]} Qc7 {[%emt 0:02:17]} 13. Nc3 {[%emt 0:08:54]} c5 {[%emt 0:10:50]} 14. Ne4 {[%emt 0:02:12]} Bxe4 {[%emt 0:03:36]} 15. Bxe4 {[%emt 0:00:16]} Rc8 {[%emt 0:01:13]} 16. Bf4 {[%emt 0:10:07]} Be7 {[%emt 0:03:20]} 17. a4 {[%emt 0:08:53]} c4 {[%emt 0:05:20]} 18. Qf3 {[%emt 0:00:15]} O-O {[%emt 0:09:36]} 19. Bb7 {[%emt 0:02:03]} Rb8 {[%emt 0:00:12]} 20. Bxa6 {[%emt 0:00:01]} bxa4 {[%emt 0:00:25]} 21. Rxa4 {[%emt 0:05:43]} Nc5 {[%emt 0:00:39]} 22. Raa1 {[%emt 0:00:24]} Rb3 {[%emt 0:15:05]} 23. Qg2 {[%emt 0:06:53]} Nxa6 {[%emt 0:01:23]} 24. Rxa6 {[%emt 0:00:01]} Rxb2 {[%emt 0:00:09]} 25. Rc6 {[%emt 0:00:35]} Qb7 {[%emt 0:03:15]} 26. Rxc4 {[%emt 0:00:15]} Qb3 {[%emt 0:00:49]} 27. Rdc1 {[%emt 0:02:52]} Rxe2 {[%emt 0:00:46]} 28. Qf1 {[%emt 0:02:32]} Ra2 {[%emt 0:03:47]} 29. Rc8 {[%emt 0:01:45]} 1/2-1/2

[Event "Vienna Chess Open 2019"]
[Site "Vienna"]
[Date "2019.08.21"]
[Round "6.8"]
[White "Belous, Mikhail"]
[Black "Seresin, Francesco"]
[Result "1-0"]
[ECO "D38"]
[WhiteElo "2308"]
[BlackElo "2362"]
[Annotator "NA"]
[PlyCount "73"]
[EventDate "2019.08.17"]
[EventType "swiss"]
[EventCountry "AUT"]
[SourceTitle "playchess.com"]
[Source "ChessBase"]
[SourceQuality "1"]
[TimeControl "40/5400+30:1800+30"]

1. d4 {[%emt 0:00:00]} Nf6 {[%emt 0:03:29]} 2. c4 {[%emt 0:00:00]} e6 {[%emt 0:00:55]} 3. Nf3 {[%emt 0:00:17]} d5 {[%emt 0:00:13]} 4. Nc3 {[%emt 0:01:10]} Bb4 {[%emt 0:00:49]} 5. cxd5 {[%emt 0:03:31]} exd5 {[%emt 0:01:14]} 6. Bg5 {[%emt 0:00:10]} h6 {[%emt 0:00:18]} 7. Bh4 {[%emt 0:00:47]} O-O {[%emt 0:03:34]} 8. e3 {[%emt 0:05:27]} Re8 {[%emt 0:05:34]} 9. Qb3 {[%emt 0:07:13]} Bxc3+ {[%emt 0:05:47]} 10. bxc3 {[%emt 0:00:43]} c6 {[%emt 0:02:44]} 11. Bd3 {[%emt 0:05:01]} Nbd7 {[%emt 0:01:57]} 12. O-O {[%emt 0:00:20]} g5 {[%emt 0:04:49]} 13. Bg3 {[%emt 0:00:36]} Ne4 {[%emt 0:02:33]} 14. Bxe4 {[%emt 0:15:52]} dxe4 {[%emt 0:13:33]} 15. Nd2 {[%emt 0:04:23]} Nb6 {[%emt 0:04:41]} 16. f3 {[%emt 0:02:37]} Be6 {[%emt 0:04:29]} 17. Qc2 {[%emt 0:02:41]} Nc4 {[%emt 0:07:13]} 18. Nxc4 {[%emt 0:01:43]} Bxc4 {[%emt 0:00:10]} 19. fxe4 {[%emt 0:00:13]} Bxf1 {[%emt 0:00:15]} 20. Rxf1 {[%emt 0:00:09]} Qd7 {[%emt 0:03:56]} 21. e5 {[%emt 0:01:40]} c5 {[%emt 0:03:28]} 22. h4 {[%emt 0:05:40]} Qg4 {[%emt 0:08:44]} 23. Qf2 {[%emt 0:01:28]} Qe6 {[%emt 0:07:18]} 24. Qe2 {[%emt 0:02:28]} Qg6 {[%emt 0:03:01]} 25. Rf6 {[%emt 0:02:22]} Qb1+ {[%emt 0:00:11]} 26. Kh2 {[%emt 0:00:36]} Re6 {[%emt 0:00:37]} 27. Rxe6 {[%emt 0:14:23]} fxe6 {[%emt 0:00:05]} 28. e4 {[%emt 0:00:09]} Re8 {[%emt 0:08:29]} 29. Qh5 {[%emt 0:02:59]} Re7 {[%emt 0:00:57]} 30. Qg6+ {[%emt 0:01:04]} Kf8 {[%emt 0:00:03]} 31. d5 {[%emt 0:01:52]} exd5 {[%emt 0:02:13]} 32. Qxh6+ {[%emt 0:00:26]} Rg7 {[%emt 0:01:09]} 33. Qh8+ {[%emt 0:01:21]} Rg8 {[%emt 0:01:04]} 34. Qf6+ {[%emt 0:00:09]} Ke8 {[%emt 0:00:04]} 35. e6 {[%emt 0:01:23]} Rf8 {[%emt 0:00:23]} 36. Qg6+ {[%emt 0:00:12]} Kd8 {[%emt 0:00:10]} 37. Qg7 {[%emt 0:01:19]} 1-0

[Event "Vienna Chess Open 2019"]
[Site "Vienna"]
[Date "2019.08.21"]
[Round "6.9"]
[White "Shengelia, David"]
[Black "Valmana Canto, Jaime"]
[Result "1-0"]
[ECO "A61"]
[WhiteElo "2523"]
[BlackElo "2406"]
[Annotator "ChessBase"]
[PlyCount "61"]
[EventDate "2019.08.17"]
[EventType "swiss"]
[EventCountry "AUT"]
[SourceTitle "playchess.com"]
[Source "ChessBase"]
[SourceQuality "1"]
[TimeControl "40/5400+30:1800+30"]

1. d4 {[%emt 0:00:00]} Nf6 {[%emt 0:00:00]} 2. c4 {[%emt 0:00:00]} c5 {[%emt 0:01:16]} 3. d5 {[%emt 0:00:15]} e6 {[%emt 0:00:09]} 4. Nc3 {[%emt 0:00:26]} exd5 {[%emt 0:00:11]} 5. cxd5 {[%emt 0:00:04]} d6 {[%emt 0:00:08]} 6. Nf3 {[%emt 0:01:05]} g6 {[%emt 0:00:23]} 7. Bf4 {[%emt 0:04:19]} Nh5 {[%emt 0:00:47]} 8. Bg5 {[%emt 0:07:19]} f6 {[%emt 0:00:11]} 9. Bd2 {[%emt 0:03:59]} Bg7 {[%emt 0:00:33]} 10. e4 {[%emt 0:08:44]} O-O {[%emt 0:01:25]} 11. Be2 {[%emt 0:09:55]} f5 {[%emt 0:02:59]} 12. Ng5 {[%emt 0:01:44]} Nf6 {[%emt 0:07:23]} 13. exf5 {[%emt 0:01:24]} Bxf5 {[%emt 0:00:51]} 14. O-O {[%emt 0:07:40]} Na6 {[%emt 0:03:51]} 15. Bxa6 {[%emt 0:06:50]} bxa6 {[%emt 0:00:18]} 16. Ne6 {[%emt 0:00:05]} Bxe6 {[%emt 0:02:00]} 17. dxe6 {[%emt 0:00:02]} d5 {[%emt 0:06:54]} 18. Re1 {[%emt 0:03:27]} Qd6 {[%emt 0:24:29]} 19. e7 {[%emt 0:21:50]} Rfe8 {[%emt 0:22:32]} 20. Bg5 {[%emt 0:00:48]} d4 {[%emt 0:00:48]} 21. Qb3+ {[%emt 0:05:05]} Kh8 {[%emt 0:00:11]} 22. Bxf6 {[%emt 0:06:52]} Bxf6 {[%emt 0:04:20]} 23. Re6 {[%emt 0:00:48]} Qd7 {[%emt 0:07:20]} 24. Qd5 {[%emt 0:00:25]} Qc7 {[%emt 0:00:03]} 25. Qf3 {[%emt 0:02:49]} Bg7 {[%emt 0:09:01]} 26. Nd5 {[%emt 0:00:07]} Qd7 {[%emt 0:01:49]} 27. Rae1 {[%emt 0:00:20]} Kg8 {[%emt 0:02:06]} 28. h4 {[%emt 0:01:00]} Rac8 {[%emt 0:00:48]} 29. h5 {[%emt 0:01:50]} gxh5 {[%emt 0:00:08]} 30. Nf6+ {[%emt 0:01:17]} Bxf6 {[%emt 0:00:08]} 31. Qxf6 {[%emt 0:00:04]} 1-0